bitfinex/quotes_ETHUSD_20260202
["timestamp","ask_amount","ask_price","bid_price","bid_amount"]
[1769991424929,0.907,2315.4,2314.2,0.01342642]
[1769991425158,0.907,2315.4,2312.5,14.56885159]
[1769991425463,1.61937273,2315.7,2314.3,0.01342642]
[1769991425625,1.61937273,2315.7,2313.5,0.01342642]
[1769991425626,0.907,2315.6,2313.5,0.01342642]
[1769991425829,0.25263727,2315.5,2313.9,0.01342642]
[1769991426073,0.25263727,2315.5,2313.7,0.01342642]
[1769991426357,1.07972704,2315.4,2313.8,1.09390009]
[1769991426865,0.907,2315.3,2314.1,0.01342642]
[1769991427232,0.907,2315.3,2313.8,1.08047367]
[1769991427473,0.907,2315.3,2313.9,0.01342642]
[1769991427628,0.907,2315.3,2314.0,0.01342642]
[1769991427979,0.907,2315.3,2313.6,1.08053245]
[1769991428131,0.907,2315.3,2313.7,1.08050872]
[1769991428335,0.25263727,2315.5,2314.0,0.01342642]
[1769991428668,0.907,2315.7,2314.7,0.01342642]
[1769991428867,0.907,2315.7,2314.3,0.01342642]
[1769991429030,0.907,2315.7,2313.5,1.08056708]
[1769991429031,0.01342642,2315.5,2313.5,1.08056708]
[1769991429230,0.01342642,2315.3,2313.5,1.08056708]
[1769991429458,0.907,2315.7,2313.5,1.08056708]
[1769991429459,12.74757368,2316.0,2313.9,0.01342642]
[1769991429666,2.18175737,2315.9,2314.1,0.01342642]
[1769991430031,2.19518379,2315.9,2314.1,0.01342642]
[1769991430334,1.09296696,2315.8,2313.8,0.01342642]
[1769991430536,0.1024,2315.4,2313.4,0.01342642]
[1769991430736,0.1024,2315.4,2313.9,1.08039814]
[1769991430968,0.91942642,2315.3,2313.4,4.32262813]
[1769991431142,0.01342642,2314.8,2313.0,4.32325039]
[1769991431343,1.28499737,2315.4,2314.3,0.01342642]
[1769991431639,0.55929196,2315.8,2314.4,0.01342642]
[1769991431872,0.906,2315.3,2314.5,0.01342642]
[1769991432180,0.01342642,2317.4,2315.0,0.01342642]
[1769991432465,0.906,2317.3,2316.3,0.22562773]
[1769991432966,13.65357368,2317.3,2315.4,1.07969857]
[1769991433263,13.65357368,2317.3,2315.3,4.33247038]
[1769991433264,0.01342642,2316.4,2314.7,4.32018025]
[1769991433436,0.906,2316.3,2315.1,1.07983667]
[1769991433638,12.7610001,2317.3,2315.3,1.07974535]
[1769991433959,0.1024,2316.8,2315.4,1.07972373]
[1769991434184,4.32842102,2317.7,2315.4,1.07972373]
[1769991434185,1.07814386,2318.8,2316.4,0.01342642]
[1769991434493,4.43693889,2318.9,2316.4,0.01342642]
[1769991434494,0.906,2318.5,2316.9,0.01342642]
[1769991434637,0.906,2318.4,2317.8,0.01342642]
[1769991434837,4.31207862,2319.1,2317.8,0.01342642]
[1769991434838,0.22549695,2320.0,2318.3,12.40568156]
[1769991435034,0.01342642,2322.0,2317.9,0.01342642]
[1769991435035,14.73107677,2320.2,2318.8,0.01342642]
[1769991435293,14.73107677,2320.2,2316.7,12.40568156]
[1769991435294,0.01342642,2319.0,2316.7,12.40568156]
[1769991435436,0.01342642,2318.0,2316.1,12.40568156]
[1769991435635,0.91942642,2317.9,2315.7,4.31820225]
[1769991435846,0.01342642,2317.3,2315.3,0.01342642]
[1769991436138,0.906,2317.2,2315.6,0.01342642]
[1769991436452,0.906,2317.1,2315.6,1.07963378]
[1769991436652,0.906,2317.1,2315.6,1.0930602]
[1769991436980,4.31426676,2317.9,2315.9,0.01342642]
[1769991436981,0.906,2317.0,2315.9,0.01342642]
[1769991437138,0.906,2316.9,2315.1,4.33273709]
[1769991437342,0.906,2316.8,2315.0,0.01342642]
[1769991437544,0.906,2316.8,2314.8,1.07998019]
[1769991437756,0.01342642,2316.4,2314.4,0.01342642]
[1769991437955,0.01342642,2316.4,2314.0,0.01442642]
[1769991437956,0.01342642,2316.2,2314.0,0.01442642]
[1769991438176,0.01342642,2316.1,2314.0,0.01442642]
[1769991438495,1.07944732,2316.0,2314.2,1.08028692]
[1769991438779,0.01342642,2315.3,2314.0,0.001]
[1769991439001,12.74757368,2315.5,2313.2,0.01342642]
[1769991439293,0.906,2315.4,2314.5,0.01342642]
[1769991439640,0.5410663,2315.9,2314.5,0.01342642]
[1769991439844,0.5410663,2315.9,2314.8,0.01342642]
[1769991439845,0.905,2315.8,2314.8,0.01342642]
[1769991440076,0.25255136,2315.8,2314.6,0.01342642]
[1769991440247,0.905,2315.7,2314.9,0.01342642]
[1769991440442,0.905,2315.7,2315.0,0.01342642]
[1769991440648,0.01342642,2317.5,2315.0,0.01342642]
[1769991440649,4.31641431,2316.8,2315.5,0.01342642]
[1769991440848,1.07874865,2317.5,2315.7,0.01342642]
[1769991441080,13.65257368,2317.4,2315.0,0.01342642]
[1769991441377,0.1024,2317.1,2315.3,0.01342642]
[1769991441579,12.74757368,2316.9,2315.0,0.01342642]
[1769991441778,12.74757368,2316.9,2314.4,4.33409096]
[1769991441779,12.74757368,2316.6,2314.4,4.33416939]
[1769991441982,12.74757368,2316.6,2314.9,1.09334984]
[1769991442283,0.1024,2316.4,2314.9,0.01342642]
[1769991442487,0.1024,2316.4,2314.4,0.01342642]
[1769991442488,0.01342642,2315.6,2313.1,0.01342642]
[1769991442698,0.01342642,2315.9,2313.1,1.08076525]
[1769991442699,0.01342642,2315.0,2313.1,1.08076525]
[1769991442886,0.01342642,2314.3,2312.2,0.01342642]
[1769991443088,0.01342642,2314.3,2311.7,12.40568156]
[1769991443089,0.01342642,2313.8,2311.5,0.01342642]
[1769991443315,0.01342642,2313.2,2311.2,1.09508355]
[1769991443471,0.01342642,2312.9,2310.5,0.01342642]
[1769991443787,0.01342642,2312.9,2310.1,1.08220423]
[1769991443788,0.01342642,2312.0,2310.1,1.08220423]
[1769991443988,0.905,2311.9,2310.2,0.55453972]
[1769991444189,0.905,2311.9,2310.2,0.5411133]
[1769991444369,0.01342642,2311.7,2310.2,1.62326857]
[1769991444570,0.01342642,2311.5,2309.9,1.08228619]
[1769991444767,0.01342642,2311.5,2308.5,0.01342642]
[1769991444768,0.01342642,2310.9,2308.5,0.01342642]
[1769991444995,0.01342642,2310.9,2308.7,0.01342642]
[1769991445191,0.905,2310.8,2309.1,0.01342642]
[1769991445408,1.08108108,2312.5,2310.2,1.08212633]
[1769991445570,2.46440812,2312.4,2310.6,0.01342642]
[1769991445770,2.46440812,2312.4,2310.3,0.55584465]
[1769991445771,0.01342642,2311.9,2310.3,0.54241823]
[1769991445994,0.01342642,2311.2,2309.0,0.01342642]
[1769991446191,0.906,2311.1,2309.5,0.01342642]
[1769991446402,0.906,2311.0,2309.7,1.08236006]
[1769991446564,0.906,2311.0,2309.1,0.01342642]
[1769991446768,0.906,2310.9,2309.5,1.08247399]
[1769991446990,0.906,2310.9,2309.5,0.54261097]
[1769991447200,1.08159556,2311.4,2309.6,1.09586357]
[1769991447515,0.1024,2311.7,2309.8,0.01342642]
[1769991447800,16.73049809,2312.3,2310.5,0.01342642]
[1769991447801,0.906,2311.6,2310.5,0.01342642]
[1769991448023,1.08117458,2312.3,2310.8,0.01342642]
[1769991448024,0.906,2311.5,2310.8,0.01342642]
[1769991448367,0.906,2311.4,2310.9,1.08182959]
[1769991448671,1.08117458,2312.3,2311.0,0.01342642]
[1769991448874,0.906,2312.2,2310.9,0.55705486]
[1769991449233,4.32469835,2312.6,2310.9,0.55705486]
[1769991449234,4.32301573,2313.3,2311.4,0.01342642]
[1769991449505,4.32301573,2313.3,2311.7,0.01342642]
[1769991449674,1.08056708,2313.6,2312.2,0.01342642]
[1769991449878,0.906,2313.5,2312.0,0.01342642]
[1769991450085,0.906,2313.5,2311.9,0.01342642]
[1769991450282,0.906,2313.5,2311.0,0.01342642]
[1769991450465,1.08066049,2313.4,2311.5,1.0949532]
[1769991450663,0.1024,2313.3,2311.0,4.3404672]
[1769991450896,0.906,2313.2,2312.3,0.01342642]
[1769991451213,4.32185819,2313.9,2312.8,0.01342642]
[1769991451375,12.40568156,2314.8,2312.4,0.01342642]
[1769991451376,0.906,2313.8,2312.4,0.01342642]
[1769991451575,6.08670938,2314.7,2312.5,0.01342642]
[1769991451576,12.74757368,2314.3,2312.5,0.01342642]
[1769991451777,2.18075737,2314.2,2312.7,0.01342642]
[1769991451996,2.18075737,2314.2,2312.4,0.01342642]
[1769991452172,0.1024,2314.1,2311.5,4.33943437]
[1769991452496,1.08042698,2313.9,2312.5,0.01342642]
[1769991452714,1.08042698,2313.9,2312.7,0.01342642]
[1769991452875,0.906,2313.8,2312.5,0.01342642]
[1769991453674,0.906,2313.8,2312.1,0.01342642]
[1769991454017,0.906,2313.8,2311.9,1.08135689]
[1769991454018,0.11582642,2313.7,2311.9,1.08135689]
[1769991454168,0.11582642,2313.7,2312.2,0.01342642]
[1769991454169,0.1024,2313.7,2312.2,0.01342642]
[1769991454496,0.906,2313.6,2312.3,0.01342642]
[1769991454795,12.74757368,2313.8,2312.9,0.01342642]
[1769991454796,0.906,2313.5,2312.9,0.01342642]
[1769991455099,0.906,2313.5,2312.5,0.01342642]
[1769991455301,2.0528411,2313.9,2312.5,0.01342642]
[1769991455477,0.906,2313.4,2312.5,0.01342642]
[1769991455673,0.906,2313.4,2312.0,0.01342642]
[1769991456207,0.906,2313.4,2312.0,1.08128353]
[1769991456402,0.906,2313.4,2311.9,0.01342642]
[1769991456574,1.08070721,2313.3,2311.8,1.08140282]
[1769991456776,0.63095361,2313.2,2311.8,1.08140282]
[1769991456976,0.63095361,2313.2,2312.4,0.01342642]
[1769991457220,1.08070721,2313.3,2312.4,0.01342642]
[1769991457221,4.32192849,2313.8,2312.5,0.01342642]
[1769991457516,2.05284527,2313.9,2312.9,0.01342642]
[1769991457724,0.906,2313.8,2313.0,0.01342642]
[1769991457926,1.0799136,2315.0,2313.4,0.01342642]
[1769991458117,0.906,2314.9,2313.3,0.01342642]
[1769991458338,0.906,2314.9,2313.6,0.01342642]
[1769991458489,2.6165567,2314.9,2314.0,1.08038029]
[1769991458689,0.906,2314.9,2314.2,0.01342642]
[1769991459091,0.906,2314.8,2313.5,1.0806077]
[1769991459297,0.906,2314.8,2313.6,1.08053419]
[1769991459602,1.53658024,2314.8,2313.8,1.08044198]
[1769991459791,0.906,2314.7,2313.9,1.08041952]
[1769991459991,0.906,2314.7,2313.5,1.0805779]
[1769991460231,0.906,2314.7,2313.4,0.01342642]
[1769991460433,0.906,2314.7,2313.7,1.08048528]
[1769991460614,0.906,2314.6,2313.6,1.0939935]
[1769991460825,12.82207367,2315.2,2313.7,0.01342642]
[1769991461031,1.07972704,2315.4,2311.7,0.01342642]
[1769991461032,12.82207367,2313.4,2311.7,0.01342642]
[1769991461200,12.82207367,2313.4,2310.3,1.08308893]
[1769991461201,2.11497791,2311.6,2310.3,1.08308893]
[1769991461401,0.01342642,2312.4,2310.3,1.08308893]
[1769991461604,0.01342642,2312.1,2310.3,1.08308893]
[1769991461801,0.906,2312.0,2310.4,0.54115311]
[1769991462099,0.01342642,2313.1,2312.1,0.001]
[1769991462288,0.906,2312.9,2312.1,0.001]
[1769991462489,0.01342642,2312.8,2312.1,0.001]
[1769991462695,1.08098759,2312.7,2310.7,1.08192322]
[1769991462934,0.01342642,2312.3,2310.8,1.87075249]
[1769991463134,0.01342642,2312.3,2310.7,1.08192322]
[1769991463135,0.01342642,2312.4,2310.7,1.08192322]
[1769991463337,0.55392022,2312.6,2310.6,1.08194821]
[1769991463492,0.906,2312.3,2310.6,1.08194821]
[1769991463992,0.906,2312.2,2310.7,0.01342642]
[1769991464622,0.01342642,2312.0,2310.4,0.54115311]
[1769991464822,0.01342642,2312.0,2310.3,0.01442642]
[1769991464823,0.01342642,2311.8,2310.3,0.001]
[1769991465028,0.01342642,2311.9,2310.3,0.001]
[1769991465029,0.63391934,2312.0,2310.4,1.09547139]
[1769991465197,0.906,2312.1,2311.0,0.01342642]
[1769991465402,0.906,2312.8,2311.6,0.01342642]
[1769991466018,0.906,2312.8,2311.2,0.01342642]
[1769991466196,0.906,2312.8,2310.5,13.31133523]
[1769991466197,0.01342642,2312.5,2310.5,13.31133523]
[1769991466402,0.01342642,2312.4,2310.5,13.29790881]
[1769991466728,0.906,2312.6,2311.3,0.01342642]
[1769991467328,0.906,2312.6,2311.4,0.01342642]
[1769991467535,1.08066049,2313.5,2311.7,0.01342642]
[1769991467759,0.906,2312.8,2311.6,0.01342642]
[1769991467922,0.906,2312.8,2311.3,0.01342642]
[1769991468119,1.08066049,2313.5,2311.5,0.01342642]
[1769991468320,2.72851893,2313.4,2311.6,0.37984006]
[1769991468515,2.72851893,2313.4,2311.5,0.01342642]
[1769991468717,2.72851893,2313.4,2311.8,0.01342642]
[1769991468718,2.90318351,2313.4,2311.8,0.01342642]
[1769991469024,0.91942642,2313.3,2311.6,1.0949284]
[1769991469414,0.01342642,2313.0,2310.6,1.45276444]
[1769991469640,0.01342642,2312.3,2310.6,1.45276444]
[1769991469955,0.01342642,2312.3,2310.3,0.01442642]
[1769991469956,0.01342642,2312.0,2310.4,4.32809385]
[1769991470120,0.906,2311.9,2311.2,4.32661912]
[1769991470323,0.906,2311.9,2311.1,1.08170827]
[1769991470546,0.906,2311.9,2310.8,1.08184291]
[1769991470861,1.094091,2313.4,2311.0,0.01342642]
[1769991470862,0.906,2312.4,2311.0,0.01342642]
[1769991471171,1.08092867,2312.9,2311.3,0.01342642]
[1769991471343,1.44643807,2312.8,2311.4,0.39431273]
[1769991471649,0.906,2312.8,2311.1,0.01342642]
[1769991471853,0.906,2312.8,2311.2,0.38147519]
[1769991472157,0.906,2312.8,2311.3,0.38147519]
[1769991472357,0.906,2312.8,2311.4,0.38147519]
[1769991472518,0.906,2312.8,2311.5,0.38147519]
[1769991472725,0.01342642,2312.4,2310.7,4.32755949]
[1769991472932,0.01342642,2312.2,2310.8,0.38251113]
[1769991473132,0.01342642,2312.2,2310.9,0.38251113]
[1769991473333,0.01342642,2312.2,2310.6,4.34124795]
[1769991473334,0.01342642,2312.0,2310.6,1.08193983]
[1769991473631,0.01342642,2312.0,2310.3,1.08308514]
[1769991473837,0.01342642,2312.3,2310.7,1.08189775]
[1769991474037,0.906,2312.2,2310.4,1.082039]
[1769991474221,0.91942642,2312.2,2310.7,1.08189991]
[1769991474418,4.33756375,2312.7,2310.7,1.08189991]
[1769991474622,2.85099279,2312.5,2310.8,0.54096284]
[1769991474847,1.08112783,2312.4,2310.9,1.08182959]
[1769991475149,1.08112783,2312.4,2310.9,1.09525601]
[1769991475336,1.08112783,2312.4,2311.0,0.01342642]
[1769991475724,5.23044455,2312.5,2311.0,0.01342642]
[1769991475725,0.906,2312.5,2311.2,0.01342642]
[1769991475956,1.98710917,2312.5,2311.2,0.01342642]
[1769991476124,2.61824863,2312.5,2311.2,0.01342642]
[1769991476652,0.906,2312.4,2311.3,0.38385717]
[1769991476858,0.906,2312.4,2311.4,1.46545273]
[1769991477059,1.98714377,2312.4,2311.1,0.001]
[1769991477272,2.00057019,2312.4,2311.1,0.001]
[1769991477437,0.01342642,2312.2,2311.1,0.001]
[1769991477763,0.01342642,2312.0,2311.1,0.001]
[1769991477945,0.01342642,2312.2,2311.1,0.001]
[1769991478124,1.08115895,2312.4,2311.1,0.001]
[1769991478720,0.0011,2312.6,2311.1,0.001]
[1769991479547,0.01342642,2312.4,2311.1,0.001]
[1769991479750,0.01342642,2312.2,2311.1,0.001]
[1769991479943,0.01342642,2312.1,2311.1,0.001]
[1769991480156,0.01342642,2312.1,2310.3,4.32940791]
[1769991480157,0.01342642,2311.9,2310.3,1.08308238]
[1769991480359,0.906,2312.0,2310.3,0.001]
[1769991480557,1.40581827,2312.2,2310.3,0.001]
[1769991480558,0.906,2311.9,2310.7,1.08191784]
[1769991480761,1.08140842,2311.8,2310.5,1.08201687]
[1769991480960,1.71271263,2311.8,2310.5,1.62584496]
[1769991481181,0.01342642,2311.6,2310.3,0.001]
[1769991481488,0.01342642,2311.6,2309.2,0.01342642]
[1769991481489,1.71271263,2311.8,2310.4,1.08205209]
[1769991481642,1.71271263,2311.8,2309.7,4.34287689]
[1769991481843,1.71271263,2311.8,2310.4,1.08203551]
[1769991482077,1.71271263,2311.8,2309.5,1.0824609]
[1769991482078,13.99946566,2311.6,2309.5,1.0824609]
[1769991482275,13.99946566,2311.6,2308.4,0.001]
[1769991482276,4.70682642,2310.7,2308.4,0.001]
[1769991482475,0.01342642,2310.1,2308.6,1.08287961]
[1769991482706,0.01342642,2310.0,2308.6,1.08287961]
[1769991482853,0.01342642,2310.1,2308.6,1.08287961]
[1769991482854,0.907,2310.1,2308.6,1.62443137]
[1769991483289,1.08211054,2310.3,2308.8,0.01342642]
[1769991483583,1.08211054,2310.3,2308.7,0.01342642]
[1769991483783,1.08211054,2310.3,2308.6,0.54155176]
[1769991483980,1.09553696,2310.3,2308.6,1.08290229]
[1769991484185,0.01342642,2309.7,2308.4,0.001]
[1769991484388,0.1024,2309.7,2308.6,1.08290479]
[1769991484555,0.907,2309.7,2308.6,1.08290479]
[1769991484881,1.08243851,2309.6,2308.4,0.001]
[1769991485192,1.08243851,2309.6,2307.4,4.44479005]
[1769991485193,0.01342642,2308.9,2307.4,4.44479005]
[1769991485396,4.591,2308.8,2307.6,1.08337424]
[1769991485696,0.01342642,2308.4,2307.4,0.110937]
[1769991485857,0.01342642,2308.2,2307.1,0.001]
[1769991486060,0.92042642,2308.1,2307.1,1.08458742]
[1769991486411,0.01342642,2307.7,2305.3,13.62208994]
[1769991486586,13.88363924,2307.9,2305.8,0.01342642]
[1769991486891,13.88363924,2307.9,2306.0,1.08412836]
[1769991486892,1.08328278,2307.8,2306.0,1.08412836]
[1769991487077,0.01342642,2307.7,2306.0,1.08412836]
[1769991487388,1.99021052,2308.0,2306.3,0.01342642]
[1769991487591,1.99021052,2308.0,2306.1,0.01342642]
[1769991487797,0.01342642,2307.7,2306.0,1.08412836]
[1769991487968,0.01342642,2307.7,2305.9,1.08414702]
[1769991487969,0.01342642,2307.5,2305.9,1.08414702]
[1769991488295,0.01342642,2307.6,2305.9,1.08414702]
[1769991488491,0.01342642,2307.5,2305.9,1.08414702]
[1769991488799,0.11582642,2307.8,2305.9,1.08416668]
[1769991488983,2.75475229,2307.8,2306.1,1.08408134]
[1769991489178,1.671423,2307.8,2306.2,0.01342642]
[1769991489378,0.63363926,2307.9,2306.5,0.01342642]
[1769991489567,1.99022086,2308.0,2306.6,0.01342642]
[1769991489767,1.99022086,2308.0,2306.0,1.62618404]
[1769991489768,0.11582642,2307.6,2306.0,1.62618404]
[1769991490097,13.94770095,2307.7,2306.0,1.08409722]
[1769991490271,0.01342642,2307.5,2306.0,1.08509722]
[1769991490468,0.01452642,2307.6,2306.0,1.08509722]
[1769991490797,0.0011,2307.6,2306.3,0.01342642]
[1769991490971,0.0011,2307.6,2306.6,0.01342642]
[1769991491171,0.0011,2307.8,2306.8,0.01342642]
[1769991491370,1.08296461,2308.5,2306.6,0.55940102]
[1769991491568,1.08296461,2308.5,2306.8,0.01342642]
[1769991491998,0.01342642,2308.3,2306.6,0.5459746]
[1769991492199,1.08296461,2308.5,2306.6,0.55940102]
[1769991492374,1.77481488,2308.4,2306.6,0.55940102]
[1769991492576,1.09639103,2308.5,2306.6,0.55940102]
[1769991492898,4.34524308,2308.6,2306.7,1.08379936]
[1769991493102,4.33181666,2308.6,2306.7,1.09722578]
[1769991493396,1.08290738,2308.6,2307.0,0.01342642]
[1769991493573,1.0963338,2308.6,2306.7,1.09722578]
[1769991493775,0.01342642,2308.4,2306.8,0.59918243]
[1769991494006,0.63492598,2308.5,2306.8,0.59918243]
[1769991494205,0.01342642,2308.4,2306.8,0.59918243]
[1769991494502,0.01342642,2307.9,2306.7,1.08379936]
[1769991494699,13.94770095,2308.4,2306.7,1.08379936]
[1769991494869,13.94770095,2308.4,2306.3,4.34862388]
[1769991494870,1.0831889,2308.0,2306.0,4.33742053]
[1769991495069,0.01342642,2307.8,2306.0,4.33742053]
[1769991495481,1.0831889,2308.0,2306.2,0.01342642]
[1769991495680,0.54159445,2307.9,2306.2,0.01342642]
[1769991495887,12.31994114,2307.6,2306.0,1.08512836]
[1769991496068,0.01342642,2307.3,2306.0,0.001]
[1769991496272,0.01342642,2307.1,2306.0,0.001]
[1769991496504,0.01342642,2306.8,2306.0,0.001]
[1769991496671,0.01342642,2306.7,2305.8,0.001]
[1769991496867,1.08398733,2306.3,2304.8,0.001]
[1769991497072,0.01342642,2306.0,2304.8,0.001]
[1769991497296,0.54333631,2306.2,2304.8,0.001]
[1769991497520,1.08368456,2307.0,2305.3,0.01342642]
[1769991497699,1.08368456,2307.0,2305.0,0.908]
[1769991497908,1.08368456,2307.0,2305.3,0.01342642]
[1769991498207,0.01342642,2306.6,2304.8,0.001]
[1769991498378,0.01342642,2306.3,2304.8,0.001]
[1769991498579,0.01342642,2305.7,2304.8,0.001]
[1769991498778,2.63079213,2306.3,2304.8,0.001]
[1769991498984,3.71480286,2306.3,2304.8,0.001]
[1769991499210,1.08401073,2306.3,2304.8,0.001]
[1769991499412,1.08392203,2306.5,2304.9,0.01342642]
[1769991499579,1.08386667,2306.6,2305.1,0.01342642]
[1769991499783,14.05010095,2306.5,2304.4,0.01342642]
[1769991499977,13.94770095,2306.5,2304.6,0.01342642]
[1769991500183,1.5044994,2306.4,2304.9,0.01342642]
[1769991500402,1.08386667,2306.6,2305.0,0.01342642]
[1769991500589,1.08377935,2306.8,2305.2,0.01342642]
[1769991500989,1.08377935,2306.8,2304.8,0.01342642]
[1769991500990,18.2961369,2306.9,2305.3,1.08445755]
[1769991501311,18.2961369,2306.9,2304.7,0.01342642]
[1769991501312,0.01342642,2306.3,2304.7,1.08469713]
[1769991501497,0.01342642,2306.2,2304.5,0.908]
[1769991501810,1.02382642,2306.5,2304.5,0.908]
[1769991502015,0.1024,2306.0,2304.3,1.08489517]
[1769991502224,14.05010095,2306.0,2304.1,1.08499302]
[1769991502446,14.05010095,2306.0,2303.8,4.34060899]
[1769991502715,26.26764209,2305.7,2303.6,4.34087309]
[1769991502901,13.94770095,2305.5,2303.7,0.43408731]
[1769991503100,1.08441051,2305.4,2303.8,1.08516364]
[1769991503714,1.08441051,2305.4,2305.3,0.001]
[1769991503919,14.05010095,2305.1,2302.7,4.34269106]
[1769991504115,14.05010095,2305.1,2301.6,2.19083947]
[1769991504116,13.94770095,2304.8,2302.8,0.55629981]
[1769991504318,1.4050101,2305.0,2303.7,1.08520816]
[1769991504614,13.40435165,2305.4,2304.1,0.001]
[1769991504615,0.1024,2305.3,2304.1,0.001]
[1769991504814,1.99241051,2305.4,2304.1,0.001]
[1769991505415,14.31235165,2305.4,2304.1,0.001]
[1769991505617,1.99241051,2305.4,2304.1,0.001]
[1769991505820,1.99241051,2305.4,2304.1,0.01442642]
[1769991506137,0.1024,2304.9,2303.6,1.08525515]
[1769991506343,0.1024,2304.9,2302.8,0.110937]
[1769991506344,0.63300526,2305.3,2303.9,1.09851763]
[1769991506640,0.1024,2305.2,2303.9,1.09851763]
[1769991506937,0.1024,2305.2,2304.0,0.01342642]
[1769991507234,1.08455164,2305.1,2303.6,0.01342642]
[1769991507416,0.55250128,2305.0,2304.0,1.0850636]
[1769991507616,0.55250128,2305.0,2303.7,1.09860508]
[1769991507818,0.55250128,2305.0,2303.8,1.08516046]
[1769991508143,14.50020223,2305.0,2303.2,0.01342642]
[1769991508332,1.55847539,2304.9,2303.4,4.35477983]
[1769991508512,1.55847539,2304.9,2303.5,0.01342642]
[1769991508708,1.55847539,2304.9,2303.5,1.09870111]
[1769991508910,12.31994114,2304.4,2302.8,0.110937]
[1769991509136,13.94770095,2304.0,2302.5,0.01342642]
[1769991509322,13.94770095,2304.0,2302.4,0.01342642]
[1769991509528,1.08497526,2304.2,2302.4,0.01342642]
[1769991509529,2.31694769,2304.3,2303.1,0.01342642]
[1769991509722,1.08495358,2304.3,2303.2,0.01342642]
[1769991510243,1.08495358,2304.3,2302.9,0.01342642]
[1769991510411,0.1024,2304.2,2302.0,0.92242642]
[1769991510609,0.1024,2304.2,2303.0,0.01342642]
[1769991510825,0.1024,2304.2,2302.7,0.01342642]
[1769991511015,1.08502235,2304.1,2303.0,0.01342642]
[1769991511210,1.08502235,2304.1,2302.9,0.01342642]
[1769991511658,1.08500669,2304.2,2302.9,0.01342642]
[1769991511813,1.08500669,2304.2,2303.0,0.01342642]
[1769991512016,1.08473987,2304.7,2303.3,0.01342642]
[1769991512250,1.08473987,2304.7,2303.2,0.01342642]
[1769991512431,1.08473987,2304.7,2303.3,0.01342642]
[1769991512843,1.0847041,2304.8,2303.6,0.01342642]
[1769991513071,1.08464575,2304.9,2303.8,1.08516364]
[1769991513383,1.08464575,2304.9,2303.6,1.08522369]
[1769991513666,4.33760327,2305.5,2303.8,0.01342642]
[1769991513867,4.33760327,2305.5,2303.7,1.09862793]
[1769991514336,4.33760327,2305.5,2303.8,0.01342642]
[1769991514539,1.08426941,2305.7,2304.0,0.01342642]
[1769991514767,1.08426941,2305.7,2303.7,1.99420151]
[1769991514969,0.54213471,2305.6,2303.8,0.63484709]
[1769991515137,1.08436347,2305.5,2303.9,1.08511654]
[1769991515333,1.08436347,2305.5,2304.0,0.01342642]
[1769991515540,1.08436347,2305.5,2304.3,0.01342642]
[1769991515748,1.08403434,2306.2,2304.6,0.01342642]
[1769991515954,5.22391717,2306.1,2304.3,0.01342642]
[1769991516145,5.22391717,2306.1,2304.4,0.01342642]
[1769991516373,5.22391717,2306.1,2304.2,0.01342642]
[1769991516837,5.22391717,2306.1,2304.3,0.01342642]
[1769991517041,1.08522836,2306.0,2304.3,1.08492817]
[1769991517239,1.0645659,2305.9,2304.3,1.63008722]
[1769991517469,1.0645659,2305.9,2304.3,1.64351364]
[1769991518177,1.0645659,2305.9,2304.4,0.01342642]
[1769991518476,1.0645659,2305.9,2304.3,1.63008722]
[1769991518680,1.0645659,2305.9,2304.4,0.01342642]
[1769991518887,1.0645659,2305.9,2304.4,0.61310138]
[1769991519439,0.1024,2305.7,2304.2,1.08495723]
[1769991519691,0.01342642,2305.6,2303.8,1.08514147]
[1769991519982,13.147156,2305.6,2304.1,1.08502211]
[1769991520136,13.147156,2305.6,2303.9,4.3404076]
[1769991520137,1.08422239,2305.8,2304.0,4.35353343]
[1769991520467,0.64856779,2305.7,2304.4,1.0848794]
[1769991520670,0.64856779,2305.7,2304.5,0.01342642]
[1769991520856,0.64856779,2305.7,2304.1,0.44877976]
[1769991521056,5.23956779,2305.7,2304.1,1.08500184]
[1769991521263,4.591,2305.5,2304.0,1.0850673]
[1769991521568,1.08441051,2305.4,2303.9,0.01342642]
[1769991521766,1.08441051,2305.4,2304.3,0.01342642]
[1769991521968,4.33695888,2305.8,2304.6,0.01342642]
[1769991522168,1.08524077,2306.0,2304.8,0.01342642]
[1769991522470,0.0011,2306.0,2305.1,0.01342642]
[1769991522769,1.08526531,2306.0,2305.2,0.01342642]
[1769991522960,1.08526531,2306.0,2304.4,0.909]
[1769991523466,0.0011,2306.0,2304.4,1.08488109]
[1769991523667,0.0011,2306.0,2304.5,0.54378319]
[1769991523997,13.148256,2306.0,2304.3,1.08488176]
[1769991524178,0.1024,2305.9,2304.0,0.01342642]
[1769991524346,0.1024,2305.9,2304.0,1.0850456]
[1769991524347,4.70682642,2305.7,2304.0,1.0850456]
[1769991524668,0.11582642,2305.5,2303.5,14.0211657]
[1769991524847,12.40765505,2305.6,2303.8,0.01342642]
[1769991525056,1.24076551,2305.5,2304.0,1.0850335]
[1769991525271,17.840556,2305.8,2304.0,1.0850335]
[1769991525272,0.11582642,2305.7,2304.0,1.08505451]
[1769991525446,1.08441051,2305.4,2303.6,1.08525785]
[1769991525644,4.591,2305.3,2303.6,1.09868427]
[1769991525968,4.591,2305.3,2303.6,1.08525785]
[1769991526170,4.591,2305.1,2303.7,0.63498966]
[1769991526663,0.56754105,2305.2,2303.8,0.01342642]
[1769991526875,1.08441051,2305.4,2304.2,0.01342642]
[1769991527072,1.08441051,2305.4,2304.3,0.01342642]
[1769991527275,1.0843907,2305.5,2304.4,0.01342642]
[1769991527581,1.08422239,2305.8,2304.6,1.08478694]
[1769991527797,1.50084234,2305.9,2304.9,0.01342642]
[1769991527980,1.50081798,2305.9,2304.9,0.01342642]
[1769991528159,1.50081798,2305.9,2304.7,0.01342642]
[1769991528355,1.50081798,2305.9,2304.7,0.65074782]
[1769991528555,6.09181798,2305.9,2304.7,0.6373214]
[1769991528760,6.09181798,2305.9,2304.4,1.09828202]
[1769991528998,6.09181798,2305.9,2304.5,1.08482624]
[1769991529294,6.09181798,2305.9,2304.2,0.01342642]
[1769991529460,0.1024,2305.6,2303.7,0.63498966]
[1769991529662,4.591,2305.4,2303.7,0.63498966]
[1769991529890,4.591,2305.4,2303.8,0.01342642]
[1769991530189,4.591,2305.4,2303.6,1.0852197]
[1769991530389,4.591,2305.4,2303.7,1.09861718]
[1769991531595,12.40765505,2305.0,2303.5,0.01442642]
[1769991531797,13.71598056,2304.8,2303.5,0.001]
[1769991531965,4.591,2304.5,2303.5,0.001]
[1769991532167,0.1024,2304.4,2303.0,0.001]
[1769991533080,0.1024,2304.4,2303.1,0.01342642]